bitfinex/quotes_SOLUSD_20220210
["timestamp","ask_amount","ask_price","bid_price","bid_amount"]
[1644536469833,42.20694079,107.02,106.93,61.48028379]
[1644536470734,56.23474079,107.02,106.93,61.48028379]
[1644536472637,35.39597874,107.0,106.93,61.48028379]
[1644536472838,4.674,106.99,106.93,61.48028379]
[1644536473039,47.55497874,107.0,106.93,61.48028379]
[1644536473239,42.88097874,107.0,106.93,47.45028379]
[1644536473439,6.90522154,106.99,106.89,11.13]
[1644536473639,68.17642154,106.99,106.88,35.1032]
[1644536473839,2.23122154,106.98,106.88,23.9732]
[1644536474040,4.675,106.97,106.86,11.13]
[1644536474244,12.815,106.97,106.86,11.13]
[1644536474439,15.29622154,106.97,106.87,44.84382677]
[1644536474641,27.0996,106.97,106.88,14.0372]
[1644536475541,27.0996,106.97,106.89,38.58007552]
[1644536475542,69.02068067,106.97,106.89,38.58007552]
[1644536476649,27.0996,106.97,106.89,38.58007552]
[1644536476853,27.0996,106.97,106.89,52.61497552]
[1644536478272,20.24213393,106.96,106.89,52.61497552]
[1644536478673,20.49213393,106.96,106.89,52.61497552]
[1644536478874,0.25,106.96,106.89,52.61497552]
[1644536479074,4.675,106.97,106.89,52.61497552]
[1644536479274,61.2717,106.99,106.89,54.85982688]
[1644536479675,61.2717,106.99,106.89,52.61497552]
[1644536479873,40.02448482,106.98,106.89,58.86497552]
[1644536480073,46.93070636,106.98,106.89,58.61497552]
[1644536480276,58.98408482,106.98,106.89,44.58007552]
[1644536480473,58.98408482,106.98,106.89,38.58007552]
[1644536480874,61.21530636,106.98,106.89,38.58007552]
[1644536481277,61.21530636,106.98,106.86,16.03275136]
[1644536481577,14.0383,106.95,106.86,14.0379]
[1644536481876,4.676,106.94,106.86,14.0379]
[1644536482078,14.2883,106.95,106.86,14.0379]
[1644536482276,32.91303471,106.95,106.87,43.52952488]
[1644536482876,32.91303471,106.95,106.87,43.77952488]
[1644536483481,14.2883,106.95,106.87,43.77952488]
[1644536483979,14.2883,106.95,106.87,57.81592488]
[1644536484180,4.676,106.96,106.87,57.81592488]
[1644536484585,24.5828,106.97,106.89,44.91874028]
[1644536484783,24.5828,106.97,106.89,45.16874028]
[1644536485383,24.5828,106.97,106.91,34.84237763]
[1644536485584,4.675,106.96,106.91,34.84237763]
[1644536485783,4.925,106.96,106.91,34.84237763]
[1644536486186,0.25,106.96,106.91,34.84237763]
[1644536486384,0.25,106.96,106.91,48.87427763]
[1644536486785,0.25,106.96,106.91,49.12427763]
[1644536486985,4.925,106.98,106.91,49.12427763]
[1644536487187,0.25,106.98,106.91,49.12427763]
[1644536487388,41.9758,106.99,106.91,49.12427763]
[1644536489690,19.57868431,106.98,106.91,48.87427763]
[1644536489886,19.57868431,106.98,106.88,59.89625136]
[1644536489887,4.675,106.97,106.87,17.13]
[1644536490087,28.8419,106.97,106.88,0.25]
[1644536490287,29.0919,106.97,106.88,0.25]
[1644536490788,37.79563983,106.96,106.88,44.19273103]
[1644536490989,4.676,106.95,106.88,58.22853103]
[1644536491388,4.926,106.95,106.88,58.22853103]
[1644536491590,20.8535797,106.94,106.88,57.97853103]
[1644536491790,21.1035797,106.94,106.88,57.97853103]
[1644536492489,21.1035797,106.94,106.88,43.94273103]
[1644536492690,0.25,106.94,106.88,43.94273103]
[1644536493089,18.963,106.95,106.88,43.94273103]
[1644536495089,0.25,106.95,106.88,57.97873103]
[1644536495291,14.2856,106.96,106.88,57.97873103]
[1644536495991,0.25,106.96,106.88,57.97873103]
[1644536496290,24.4169,106.97,106.88,58.22873103]
[1644536496491,4.676,106.96,106.88,58.22873103]
[1644536496690,29.0929,106.97,106.88,58.22873103]
[1644536497091,4.676,106.97,106.88,58.22873103]
[1644536497291,18.7112,106.97,106.88,58.22873103]
[1644536497494,14.0352,106.97,106.88,58.22873103]
[1644536497691,4.676,106.96,106.88,58.22873103]
[1644536497892,4.675,106.98,106.88,58.22873103]
[1644536498094,46.6399348,106.97,106.88,58.22873103]
[1644536498293,18.7122,106.96,106.88,58.22873103]
[1644536498492,18.7122,106.96,106.88,64.22873103]
[1644536498693,43.2168,106.96,106.88,58.22873103]
[1644536499392,12.00928473,106.95,106.88,58.22873103]
[1644536499592,4.676,106.94,106.88,57.97873103]
[1644536499792,4.676,106.94,106.88,43.94273103]
[1644536499994,4.926,106.94,106.88,43.94273103]
[1644536500795,45.17455204,106.93,106.87,14.0378]
[1644536500995,56.22955204,106.93,106.84,24.159]
[1644536501195,4.676,106.92,106.82,70.8738]
[1644536501492,32.09252154,106.92,106.82,70.8738]
[1644536501693,32.09252154,106.92,106.82,72.86870076]
[1644536501894,13.47466749,106.91,106.83,44.37738912]
[1644536502093,4.678,106.9,106.84,14.0417]
[1644536502296,4.678,106.9,106.85,47.96783336]
[1644536502498,4.928,106.9,106.85,47.96783336]
[1644536502896,4.928,106.9,106.82,26.06800076]
[1644536503097,4.928,106.9,106.82,1.99490076]
[1644536503297,29.6394,106.9,106.83,14.0431]
[1644536503499,29.6394,106.9,106.8,70.3733]
[1644536503698,55.12502154,106.9,106.79,1.99490076]
[1644536503899,45.17455204,106.88,106.76,83.69017156]
[1644536504096,45.17455204,106.88,106.76,81.6952708]
[1644536504097,13.47466749,106.86,106.76,81.6952708]
[1644536504297,18.731,106.85,106.78,14.0488]
[1644536504498,18.731,106.85,106.79,34.73114987]
[1644536504801,18.981,106.85,106.79,34.73114987]
[1644536505398,0.25,106.85,106.79,34.73114987]
[1644536506102,27.77336749,106.86,106.79,34.73114987]
[1644536506299,4.68,106.85,106.79,34.73114987]
[1644536506498,7.232,106.85,106.79,34.73114987]
[1644536506699,7.482,106.85,106.79,34.73114987]
[1644536506900,45.17455204,106.84,106.78,14.0488]
[1644536507100,49.85455204,106.84,106.73,123.03]
[1644536507300,2.23122154,106.83,106.73,6.0]
[1644536507503,4.682,106.82,106.73,6.0]
[1644536507700,4.682,106.82,106.72,39.89989091]
[1644536507701,4.682,106.83,106.72,45.89989091]
[1644536507908,18.7313,106.86,106.74,1.99490076]
[1644536508099,4.682,106.89,106.75,11.13]
[1644536508302,24.6636,106.88,106.76,48.2708]
[1644536508599,4.681,106.91,106.77,11.13]
[1644536508799,42.19474548,106.91,106.78,35.35324456]
[1644536509001,42.19474548,106.91,106.79,11.13]
[1644536509202,66.46604548,106.91,106.8,39.41571525]
[1644536509401,66.46604548,106.91,106.83,14.041]
[1644536509603,16.45447405,106.89,106.8,41.41061601]
[1644536509801,42.19474548,106.87,106.8,39.41571525]
[1644536510200,4.68,106.86,106.8,39.41571525]
[1644536510401,4.679,106.9,106.8,39.41571525]
[1644536510607,14.0466,106.88,106.8,53.46351525]
[1644536510802,4.679,106.9,106.8,55.70841601]
[1644536511005,4.679,106.91,106.81,11.13]
[1644536511205,45.09278103,106.9,106.82,43.5560974]
[1644536511406,4.679,106.89,106.82,45.80099816]
[1644536511630,4.678,106.91,106.82,45.80099816]
[1644536511834,45.6556,106.92,106.83,1.99490076]
[1644536512231,80.18859246,106.92,106.84,42.19007369]
[1644536512433,4.678,106.91,106.84,42.19007369]
[1644536512837,4.928,106.91,106.84,56.23037369]
[1644536514335,4.678,106.91,106.84,56.23037369]
[1644536514638,4.678,106.91,106.84,56.48037369]
[1644536515740,22.8998,106.92,106.85,1.99490076]
[1644536515940,23.5231,106.94,106.87,14.0372]
[1644536516141,48.76464548,106.97,106.88,39.11048787]
[1644536516438,4.676,106.95,106.88,49.12648787]
[1644536516638,4.676,106.96,106.88,49.12648787]
[1644536517240,4.926,106.96,106.88,49.12648787]
[1644536517442,4.926,106.96,106.88,39.11048787]
[1644536517843,4.926,106.96,106.9,14.0347]
[1644536518742,4.926,106.96,106.92,14.0314]
[1644536518743,4.676,106.96,106.92,14.0314]
[1644536519143,4.675,106.98,106.92,14.0314]
[1644536519843,4.925,106.98,106.92,14.0314]
[1644536520044,4.925,106.98,106.93,45.10711551]
[1644536520244,4.675,106.98,106.93,59.13761551]
[1644536521643,4.925,106.98,106.93,59.13761551]
[1644536522045,4.675,106.98,106.93,59.13761551]
[1644536522743,1.29495347,107.01,106.93,67.58661551]
[1644536523148,5.96895347,107.02,106.96,14.0257]
[1644536523345,5.96895347,107.02,106.96,24.4267]
[1644536523545,4.674,107.02,106.96,24.4267]
[1644536523747,4.674,107.02,106.97,35.20573312]
[1644536523945,24.51240057,107.02,106.94,13.12490076]
[1644536524145,24.51240057,107.02,106.94,1.99490076]
[1644536524345,24.51240057,107.02,106.94,2.24490076]
[1644536524546,5.96895347,107.02,106.94,2.24490076]
[1644536524745,6.21895347,107.02,106.94,2.24490076]
[1644536524949,6.21895347,107.02,106.94,0.25]
[1644536525146,6.21895347,107.02,106.93,11.13]
[1644536525346,6.21895347,107.02,106.93,11.38]
[1644536525650,53.08841782,107.02,106.94,34.52899331]
[1644536525846,51.79346435,107.02,106.94,48.55619331]
[1644536526547,4.924,107.02,106.94,48.55619331]
[1644536526846,4.924,107.02,106.94,48.80619331]
[1644536527145,4.924,107.02,106.94,50.80109407]
[1644536527345,4.924,107.02,106.94,48.80619331]
[1644536527750,4.924,107.02,106.94,50.80109407]
[1644536528146,0.25,107.02,106.94,50.80109407]
[1644536528356,29.32935347,107.03,106.94,50.80109407]
[1644536528948,28.0344,107.03,106.94,50.80109407]
[1644536530249,28.0344,107.03,106.94,61.93109407]
[1644536530649,27.7844,107.03,106.94,61.93109407]
[1644536530853,23.9046,107.04,106.94,67.93109407]
[1644536531551,1.29495347,107.06,106.94,67.93109407]
[1644536531751,24.5206,107.07,106.95,92.79]
[1644536531951,29.1926,107.07,106.98,14.018]
[1644536532152,29.1926,107.07,106.99,11.13]
[1644536532351,4.672,107.07,107.0,43.8022576]
[1644536532551,4.672,107.07,107.0,56.76815836]
[1644536532750,4.672,107.07,107.0,57.01815836]
[1644536533654,0.04417102,107.08,107.0,57.01815836]
[1644536533854,4.671,107.09,107.0,71.03565836]
[1644536533855,4.71517102,107.09,107.0,71.03565836]
[1644536534052,0.04417102,107.08,107.0,71.03565836]
[1644536534251,4.96517102,107.09,107.0,71.03565836]
[1644536534451,0.04417102,107.08,107.0,71.03565836]
[1644536534654,4.96517102,107.09,107.0,71.03565836]
[1644536537256,4.71517102,107.09,107.01,11.13]
[1644536537454,0.04417102,107.09,107.01,25.1454]
[1644536537655,51.7389,107.1,107.01,25.3954]
[1644536537879,0.04417102,107.09,107.01,25.3954]
[1644536538054,47.11307102,107.1,107.02,38.53578244]
[1644536538256,47.11307102,107.1,107.02,38.78578244]
[1644536538664,47.11307102,107.1,107.02,72.64148244]
[1644536539961,21.00088595,107.09,107.02,49.91578244]
[1644536540161,4.67,107.08,107.02,38.53578244]
[1644536540561,0.25,107.08,107.02,38.53578244]
[1644536541763,4.96417102,107.09,107.02,38.53578244]
[1644536541962,4.92,107.09,107.02,38.53578244]
[1644536544167,0.25,107.09,107.02,38.53578244]
[1644536544366,62.67612449,107.1,107.02,38.53578244]
[1644536544569,1.29495347,107.09,107.02,38.53578244]
[1644536544769,0.25,107.09,107.02,38.53578244]
[1644536545168,4.67,107.08,107.02,38.53578244]
[1644536545385,4.67,107.08,107.02,38.78578244]
[1644536545584,0.04417102,107.09,107.02,38.78578244]
[1644536545785,48.36385347,107.1,107.02,38.78578244]
[1644536546689,1.29495347,107.09,107.02,52.80078244]
[1644536546887,1.54495347,107.09,107.02,52.80078244]
[1644536547887,4.67,107.08,107.02,52.55078244]
[1644536548389,6.21495347,107.08,107.02,52.55078244]
[1644536549089,1.54495347,107.08,107.02,52.55078244]
[1644536549689,1.29495347,107.07,107.02,52.55078244]
[1644536549890,1.54495347,107.07,107.02,52.55078244]
[1644536550290,1.54495347,107.07,107.02,38.53578244]
[1644536550490,44.84787406,107.07,107.02,38.53578244]
[1644536550691,4.67,107.06,106.98,59.92360076]
[1644536550892,1.54495347,107.06,106.99,0.25]
[1644536551097,1.54495347,107.06,106.99,2.24490076]
[1644536551295,1.54495347,107.06,106.99,16.26400076]
[1644536551895,1.54495347,107.06,107.0,46.82847768]
[1644536552295,1.54495347,107.06,107.0,61.09657768]
[1644536554397,1.54495347,107.06,107.0,63.09147844]
[1644536554594,1.54495347,107.06,107.0,60.84657768]
[1644536554996,1.29495347,107.05,107.0,60.84657768]
[1644536555197,5.96595347,107.05,107.0,60.84657768]
[1644536555401,6.21595347,107.05,107.0,60.84657768]
[1644536555598,1.54495347,107.05,107.0,46.82847768]
[1644536556400,1.29495347,107.04,107.0,46.82847768]
[1644536556798,1.29495347,107.05,107.0,46.82847768]
[1644536557000,1.29495347,107.05,107.0,47.07847768]
[1644536557199,1.29495347,107.05,107.0,46.82847768]
[1644536557397,1.29495347,107.05,107.0,47.07847768]
[1644536557698,1.29495347,107.05,107.0,61.09687768]
[1644536558101,1.29495347,107.05,107.0,63.09177844]
[1644536558300,1.29495347,107.05,107.0,74.22177844]
[1644536559601,1.29495347,107.05,107.0,72.22687768]
[1644536559798,49.73056249,107.08,107.0,72.22687768]
[1644536559799,1.29495347,107.04,107.0,46.82847768]
[1644536560405,1.29495347,107.04,107.0,47.07847768]
[1644536560602,1.29495347,107.05,107.0,49.07337844]
[1644536561703,1.29495347,107.05,107.0,63.09207844]
[1644536562105,1.29495347,107.04,107.0,63.09207844]
[1644536562504,1.29495347,107.04,107.0,60.84717768]
[1644536562707,1.29495347,107.03,107.0,46.82847768]
[1644536562906,6.4510122,107.02,107.0,46.82847768]
[1644536563507,5.15605873,107.02,107.01,0.14598477]
[1644536563709,6.4510122,107.02,107.0,46.82847768]
[1644536564308,6.7010122,107.02,107.0,46.82847768]
[1644536564710,6.7010122,107.02,106.96,14.0233]
[1644536564910,6.7010122,107.02,106.96,20.2733]
[1644536565107,11.3740122,107.02,106.96,20.2733]
[1644536565509,11.3740122,107.02,106.96,14.0233]
[1644536565720,40.22167852,107.01,106.94,46.62561164]
[1644536566010,21.01744795,106.99,106.94,44.63071088]
[1644536566207,29.15744795,106.99,106.94,44.63071088]
[1644536566409,4.674,106.98,106.94,44.63071088]
[1644536566707,1.54495347,106.99,106.94,44.63071088]
[1644536566907,0.25,106.98,106.94,44.63071088]
[1644536567109,0.25,106.99,106.94,44.63071088]
[1644536568008,21.02443215,106.99,106.94,44.63071088]
[1644536568210,22.31938562,106.99,106.89,13.12490076]
[1644536568411,46.90348562,106.99,106.89,13.37490076]
[1644536568609,45.60853215,106.99,106.89,13.37490076]
[1644536569212,45.60853215,106.99,106.9,40.30731331]
[1644536569410,4.675,106.98,106.9,40.30731331]
[1644536569610,4.675,106.98,106.92,41.38405029]
[1644536569811,4.925,106.98,106.92,41.38405029]
[1644536570814,0.25,106.98,106.92,41.38405029]
[1644536571210,24.5841,106.99,106.92,41.38405029]
[1644536574014,24.5841,106.99,106.92,43.37895105]
[1644536575627,47.29367022,106.99,106.92,43.37895105]
[1644536575828,4.674,106.98,106.92,41.38405029]
[1644536576128,4.674,106.98,106.9,27.40530076]
[1644536576129,35.93964931,106.97,106.9,2.24490076]
[1644536576327,4.675,106.96,106.9,2.24490076]
[1644536576728,24.5841,106.99,106.9,16.27550076]
[1644536577630,70.61456257,106.99,106.91,45.48259532]
[1644536577830,70.61456257,106.99,106.91,45.73259532]
[1644536578029,70.61456257,106.99,106.91,47.72749608]
[1644536581050,84.64626257,106.99,106.89,1.99490076]
[1644536581257,6.90622154,106.98,106.89,0.25]
[1644536581652,2.23122154,106.97,106.87,1.99490076]
[1644536581852,4.676,106.96,106.86,59.8797]
[1644536582051,12.61875696,106.95,106.88,45.27841305]
[1644536582251,4.676,106.94,106.88,45.27841305]
[1644536582851,4.926,106.94,106.88,45.27841305]
[1644536583253,0.25,106.94,106.88,45.27841305]
[1644536583853,36.9533,106.96,106.88,45.27841305]
[1644536584656,19.35146838,106.95,106.88,45.27841305]
[1644536584854,33.63816838,106.95,106.86,13.12490076]
[1644536585055,4.676,106.94,106.84,13.12490076]
[1644536585254,39.93552154,106.94,106.84,1.99490076]
[1644536585455,37.7043,106.94,106.84,1.99490076]
[1644536585854,38.53489707,106.93,106.85,37.09188743]
[1644536586055,4.676,106.92,106.85,37.09188743]
[1644536586554,4.926,106.92,106.85,37.09188743]
[1644536586956,0.25,106.92,106.85,37.09188743]
[1644536587561,4.926,106.93,106.85,37.09188743]
[1644536587757,14.0406,106.92,106.85,37.09188743]
[1644536587955,4.676,106.91,106.85,37.09188743]
[1644536588456,4.926,106.91,106.85,37.09188743]
[1644536590157,0.25,106.91,106.85,37.09188743]
[1644536590358,54.46884189,106.92,106.85,37.09188743]
[1644536590557,4.676,106.91,106.85,37.09188743]
[1644536590763,4.926,106.91,106.85,37.09188743]
[1644536592160,4.926,106.91,106.83,22.6607]
[1644536592360,28.0924,106.91,106.82,13.1302711]
[1644536593264,64.80089493,106.91,106.83,45.27254549]
[1644536593463,27.8424,106.91,106.83,45.27254549]
[1644536593665,23.1664,106.91,106.84,2.0002711]
[1644536593866,4.678,106.95,106.85,11.13]
[1644536594162,27.6655,106.95,106.85,11.13]
[1644536594462,68.0394424,106.95,106.87,47.07147008]
[1644536594664,27.6655,106.95,106.87,47.07147008]
[1644536594863,27.9155,106.95,106.87,47.07147008]
[1644536595463,41.9532,106.95,106.87,47.07147008]
[1644536595664,40.69999786,106.94,106.87,47.07147008]
[1644536595866,4.676,106.93,106.87,47.07147008]
[1644536596267,4.926,106.93,106.87,47.07147008]
[1644536597063,0.25,106.93,106.87,47.07147008]
[1644536597264,4.926,106.94,106.87,47.07147008]
[1644536600873,18.9638,106.94,106.81,48.12178531]
[1644536601071,25.16432154,106.93,106.82,13.1302711]
[1644536601271,23.1831,106.93,106.83,11.13]
[1644536601874,23.1831,106.93,106.84,46.05148623]
[1644536602072,23.1831,106.93,106.84,60.09068623]
[1644536602275,23.1831,106.93,106.84,60.34068623]
[1644536603276,22.6831,106.93,106.84,68.34095733]
[1644536603777,22.33933171,106.92,106.84,68.34095733]
[1644536603977,24.57055325,106.92,106.84,62.34095733]
[1644536604182,24.82055325,106.92,106.84,46.05148623]
[1644536604401,0.25,106.92,106.84,46.05148623]
[1644536605178,14.2905,106.92,106.84,46.30148623]
[1644536605397,14.2905,106.92,106.84,48.30175733]
[1644536607599,4.678,106.91,106.84,48.30175733]
[1644536607801,4.928,106.91,106.84,48.30175733]
[1644536608000,29.8876,106.91,106.84,48.30175733]
[1644536608402,29.8876,106.91,106.84,48.05175733]
[1644536610205,14.8961119,106.9,106.83,24.3468]
[1644536610410,14.8961119,106.9,106.82,11.13]
[1644536610411,4.678,106.89,106.82,11.13]
[1644536610606,4.678,106.89,106.8,11.13]
[1644536610806,0.25,106.89,106.8,11.38]
[1644536611004,0.25,106.89,106.8,13.3802711]
[1644536611306,0.25,106.89,106.81,40.50101082]
[1644536611704,0.25,106.89,106.81,54.79391082]
[1644536612104,33.8680119,106.9,106.81,54.79391082]
[1644536612508,35.16296537,106.9,106.81,54.79391082]
[1644536612706,35.16296537,106.9,106.81,54.54391082]
[1644536612906,35.16296537,106.9,106.81,40.50101082]
[1644536613107,1.29495347,106.89,106.81,40.50101082]
[1644536613308,20.02035347,106.88,106.81,40.50101082]
[1644536613711,20.27035347,106.88,106.81,40.50101082]
[1644536613911,18.9754,106.88,106.81,40.50101082]
[1644536614310,18.9754,106.88,106.79,22.5643]
[1644536614911,18.9754,106.88,106.78,50.0509]
[1644536615111,20.27035347,106.88,106.78,50.3009]
[1644536615313,20.27035347,106.88,106.79,42.21476939]
[1644536615915,18.9754,106.88,106.79,42.21476939]
[1644536621610,18.7254,106.88,106.79,42.21476939]
[1644536622007,18.9754,106.88,106.79,42.21476939]
[1644536624210,42.42973417,106.86,106.79,42.21476939]
[1644536624408,4.68,106.85,106.79,42.21476939]
[1644536624808,4.93,106.85,106.77,48.9191]
[1644536625013,31.95842154,106.85,106.73,1.32428531]
[1644536625210,46.32413791,106.85,106.72,45.5088]
[1644536625409,46.32413791,106.85,106.71,11.13]
[1644536625611,47.61909138,106.85,106.71,11.13]
[1644536625811,71.76315029,106.85,106.72,35.90989328]
[1644536626742,71.76315029,106.85,106.72,53.03989328]
[1644536627111,54.9066,106.85,106.72,53.03989328]
[1644536627316,2.23122154,106.84,106.72,53.28989328]
[1644536627517,14.0561,106.81,106.72,53.28989328]
[1644536627913,0.25,106.81,106.72,53.28989328]
[1644536628512,0.25,106.81,106.72,47.03989328]
[1644536629015,4.683,106.8,106.72,47.03989328]
[1644536629415,4.683,106.81,106.72,47.03989328]
[1644536629614,42.42973417,106.78,106.72,47.03989328]
[1644536629813,42.42973417,106.78,106.72,35.90989328]
[1644536630418,4.683,106.77,106.72,35.90989328]
[1644536631758,18.7407,106.8,106.72,35.90989328]
[1644536631939,4.684,106.8,106.72,43.41789328]
[1644536632639,4.684,106.8,106.72,43.66789328]
[1644536632838,4.684,106.8,106.72,36.15989328]
[1644536633039,4.934,106.8,106.72,36.15989328]
[1644536633442,23.041,106.81,106.72,36.15989328]
[1644536633639,4.683,106.8,106.72,35.90989328]
[1644536633838,4.683,106.8,106.72,50.21449328]
[1644536634440,27.3883,106.8,106.72,50.21449328]
[1644536634642,27.3883,106.8,106.72,49.96449328]
[1644536634839,27.6383,106.8,106.72,49.96449328]
[1644536637245,27.6383,106.8,106.72,50.21449328]
[1644536637945,27.6383,106.8,106.72,35.90989328]
[1644536637946,41.6951,106.8,106.72,35.90989328]
[1644536638153,43.92632154,106.8,106.72,35.90989328]
[1644536638945,41.6951,106.8,106.72,35.90989328]
[1644536639946,41.4451,106.8,106.72,35.90989328]
[1644536640150,27.3883,106.8,106.72,55.77989328]
[1644536640348,4.683,106.82,106.72,57.78012443]
[1644536640547,4.682,106.83,106.72,57.78012443]
[1644536640748,48.51995347,106.85,106.75,14.0512]
[1644536640749,51.907,106.85,106.75,14.0512]
[1644536640951,47.225,106.85,106.76,11.13]
[1644536641154,47.225,106.85,106.76,54.52565594]
[1644536641352,47.225,106.85,106.77,2.00023115]
[1644536641654,47.225,106.85,106.78,11.13]
[1644536641851,47.225,106.85,106.78,25.1759]
[1644536642359,47.225,106.85,106.78,14.0459]
[1644536642552,4.68,106.84,106.78,14.0459]
[1644536642752,4.93,106.84,106.76,58.52542479]
[1644536643152,0.25,106.84,106.76,58.52542479]
[1644536643353,0.25,106.84,106.76,58.77542479]
[1644536643754,0.25,106.84,106.76,72.82682479]
[1644536643954,4.681,106.84,106.76,72.82682479]
[1644536644458,4.931,106.84,106.76,72.82682479]
[1644536644857,0.25,106.84,106.76,72.82682479]
[1644536645056,0.25,106.84,106.76,74.82705594]
[1644536645256,47.475,106.85,106.76,74.82705594]
[1644536645956,14.57806845,106.84,106.76,74.57705594]
[1644536646161,4.681,106.83,106.76,41.39542479]
[1644536646457,6.91222154,106.83,106.76,41.39542479]
[1644536646759,7.16222154,106.83,106.76,41.39542479]
[1644536647360,7.16222154,106.83,106.72,33.8831]
[1644536647558,26.62582154,106.82,106.69,22.6852]
[1644536647759,26.87582154,106.82,106.69,33.8152]
[1644536647960,2.23122154,106.81,106.69,33.8152]
[1644536648360,37.79141466,106.8,106.7,36.46358378]
[1644536648762,14.0585,106.79,106.7,56.52208378]
[1644536648962,14.0585,106.79,106.7,58.52231493]
[1644536649160,14.3085,106.79,106.7,58.52231493]
[1644536649360,14.3085,106.79,106.7,69.65231493]
[1644536649561,14.3085,106.79,106.7,61.65208378]
[1644536650386,18.7433,106.78,106.7,61.65208378]
[1644536650861,18.9933,106.78,106.7,61.65208378]
[1644536651460,18.9933,106.78,106.7,50.52208378]
[1644536652764,18.9933,106.78,106.7,14.0585]
[1644536652964,18.9933,106.78,106.68,14.0621]
[1644536652965,29.34952154,106.78,106.68,14.0621]
[1644536653166,52.49562154,106.78,106.68,14.0621]
[1644536653767,52.49562154,106.78,106.69,35.01940499]
[1644536654463,50.2644,106.78,106.69,35.01940499]
[1644536654967,50.2644,106.78,106.69,49.07980499]
[1644536655167,42.1394,106.78,106.69,49.07980499]
[1644536655981,2.23122154,106.77,106.66,11.13]
[1644536656171,20.04165347,106.76,106.64,11.13]
[1644536656370,20.04165347,106.76,106.6,1.32428531]
[1644536656574,1.29495347,106.74,106.6,12.45428531]
[1644536656775,1.29495347,106.74,106.59,24.1999]
[1644536656776,20.85780487,106.72,106.61,35.66755705]
[1644536656972,24.0902,106.71,106.61,35.66755705]
[1644536657173,4.687,106.7,106.61,35.66755705]
[1644536657373,19.0086,106.7,106.61,35.66755705]
[1644536658994,4.937,106.7,106.61,35.66755705]
[1644536659197,4.937,106.7,106.61,35.91755705]
[1644536660298,4.937,106.7,106.61,41.91755705]
[1644536660496,4.687,106.7,106.61,49.98715705]
[1644536660699,4.688,106.71,106.61,69.12424442]
[1644536660896,4.687,106.74,106.61,82.53557053]
[1644536661496,39.93669062,106.73,106.61,82.53557053]
[1644536661697,28.0097,106.72,106.61,76.53557053]
[1644536662098,28.2597,106.72,106.61,63.12424442]
[1644536663299,28.0097,106.72,106.61,63.12424442]
[1644536663698,4.687,106.71,106.61,69.12424442]
[1644536664102,4.687,106.71,106.61,63.12424442]
[1644536664300,45.16416775,106.71,106.61,62.87424442]
[1644536665301,4.937,106.71,106.61,62.87424442]
[1644536665499,19.0064,106.71,106.61,60.86715705]
[1644536665701,28.51162154,106.71,106.61,35.66755705]
[1644536666099,43.03964058,106.7,106.61,35.66755705]
[1644536666300,4.688,106.69,106.61,35.66755705]
[1644536666499,0.25,106.7,106.61,35.66755705]
[1644536666700,0.25,106.69,106.61,35.66755705]
[1644536666898,4.938,106.7,106.61,35.66755705]
[1644536667300,4.938,106.7,106.61,37.67464442]
[1644536667500,4.938,106.7,106.61,35.66755705]
[1644536667703,4.938,106.7,106.61,49.98725705]
[1644536667909,4.938,106.7,106.61,49.73725705]
[1644536668103,21.24012154,106.7,106.61,35.66755705]
[1644536672611,21.24012154,106.7,106.57,11.13]
[1644536672810,24.6997,106.69,106.58,0.25]
[1644536673014,14.0754,106.67,106.56,15.818]
[1644536673209,4.689,106.66,106.56,4.688]
[1644536673611,13.03241431,106.65,106.57,34.68221601]
[1644536673810,13.28241431,106.65,106.57,34.68221601]
[1644536674414,13.28241431,106.65,106.57,34.93221601]
[1644536674613,0.25,106.65,106.57,34.93221601]
[1644536675011,14.3269,106.66,106.57,34.93221601]
[1644536675213,4.689,106.65,106.57,34.93221601]
[1644536675412,19.0159,106.66,106.57,34.93221601]
[1644536675812,62.31634871,106.66,106.57,34.93221601]
[1644536676715,62.31634871,106.66,106.57,49.00801601]
[1644536677413,62.31634871,106.66,106.57,0.25]
[1644536677615,64.54757025,106.66,106.55,50.9181]
[1644536677814,87.18857025,106.66,106.55,50.9181]
[1644536678218,14.0789,106.64,106.55,64.9966]